bitfinex-derivatives/quotes_SOLF0:USTF0_20250928
["timestamp","ask_amount","ask_price","bid_price","bid_amount"]
[1759059373818,16.01,199.85,199.77,7.79]
[1759059374115,7.73,199.85,199.77,7.79]
[1759059374414,23.89,199.85,199.77,7.79]
[1759059374617,7.73,199.85,199.77,7.79]
[1759059375118,16.01,199.85,199.77,7.79]
[1759059376509,7.73,199.85,199.77,7.79]
[1759059376819,7.73,199.84,199.72,7.7]
[1759059388019,7.76,199.82,199.72,7.7]
[1759059388421,15.42,199.82,199.72,7.7]
[1759059390624,22.68,199.82,199.72,7.7]
[1759059390824,7.76,199.82,199.72,7.7]
[1759059391026,29.58,199.82,199.72,7.7]
[1759059391227,7.76,199.82,199.72,7.7]
[1759059391430,50.5,199.82,199.72,7.7]
[1759059392127,71.42,199.82,199.72,7.7]
[1759059392521,7.76,199.82,199.72,7.7]
[1759059392727,107.78,199.82,199.72,7.7]
[1759059393020,130.72,199.82,199.72,7.7]
[1759059393633,122.96,199.81,199.72,7.7]
[1759059393831,7.76,199.8,199.72,7.7]
[1759059401024,7.76,199.8,199.66,7.63]
[1759059401622,38.34,199.8,199.66,7.63]
[1759059402732,61.84,199.8,199.66,7.63]
[1759059403728,84.16,199.8,199.66,7.63]
[1759059404637,105.36,199.8,199.66,7.63]
[1759059405239,117.72,199.79,199.66,7.63]
[1759059405439,7.76,199.78,199.66,7.63]
[1759059412845,24.46,199.83,199.66,7.63]
[1759059413045,7.76,199.82,199.66,7.63]
[1759059413447,33.62,199.82,199.66,7.63]
[1759059413646,7.76,199.82,199.66,7.63]
[1759059413846,32.52,199.82,199.66,7.63]
[1759059414042,55.8,199.82,199.66,7.63]
[1759059414750,7.76,199.82,199.66,7.63]
[1759059415649,32.48,199.82,199.66,7.63]
[1759059420156,7.76,199.82,199.66,7.63]
[1759059425861,33.36,199.82,199.66,7.63]
[1759059426061,56.36,199.82,199.66,7.63]
[1759059426456,7.76,199.82,199.66,7.63]
[1759059426755,77.98,199.82,199.66,7.63]
[1759059426955,98.3,199.82,199.66,7.63]
[1759059427160,98.3,199.82,199.66,13.22055998]
[1759059427362,7.57,199.81,199.67,8.1]
[1759059430959,13.1655633,199.81,199.67,8.1]
[1759059431160,5.5955633,199.8,199.67,8.1]
[1759059431362,7.6,199.79,199.67,8.1]
[1759059432162,86.58,199.79,199.67,8.1]
[1759059432357,113.14,199.79,199.67,8.1]
[1759059432568,130.48,199.79,199.67,8.1]
[1759059433458,122.88,199.78,199.67,8.1]
[1759059433665,7.6,199.77,199.67,8.1]
[1759059434058,37.6,199.77,199.67,8.1]
[1759059434360,7.6,199.77,199.67,8.1]
[1759059434565,37.68,199.77,199.67,8.1]
[1759059434762,66.26,199.77,199.67,8.1]
[1759059435161,7.6,199.77,199.67,8.1]
[1759059435564,37.66,199.77,199.67,8.1]
[1759059435763,7.6,199.77,199.67,8.1]
[1759059436167,37.66,199.77,199.67,8.1]
[1759059438768,7.6,199.77,199.67,8.1]
[1759059438973,37.52,199.77,199.67,8.1]
[1759059441171,7.6,199.75,199.64,8.56437862]
[1759059441672,19.34,199.75,199.64,8.56437862]
[1759059442875,25.82,199.74,199.64,8.56437862]
[1759059443074,7.6,199.73,199.64,0.83437862]
[1759059443270,39.46,199.73,199.61,7.73]
[1759059443672,7.6,199.73,199.61,7.73]
[1759059443873,7.97,199.71,199.61,7.73]
[1759059447379,29.97,199.71,199.61,7.73]
[1759059447579,7.97,199.71,199.61,7.73]
[1759059447770,7.97,199.69,199.61,7.73]
[1759059448178,55.73,199.69,199.61,7.73]
[1759059448379,47.76,199.69,199.57,7.58]
[1759059448571,7.97,199.68,199.57,7.58]
[1759059451678,69.98,199.67,199.57,7.58]
[1759059451879,7.97,199.66,199.57,7.58]
[1759059456789,7.97,199.64,199.57,7.58]
[1759059458682,7.97,199.64,199.5,12.5541151]
[1759059458683,7.97,199.64,199.51,7.58]
[1759059459584,7.97,199.62,199.51,7.58]
[1759059459784,13.5655633,199.62,199.5,2.35209957]
[1759059459984,7.97,199.6,199.5,2.35209957]
[1759059460175,23.41334496,199.65,199.5,2.35209957]
[1759059460176,7.97,199.58,199.5,2.35209957]
[1759059460381,7.97,199.56,199.5,2.35209957]
[1759059461183,7.97,199.58,199.5,2.35209957]
[1759059461382,7.97,199.56,199.5,2.35209957]
[1759059461588,7.97,199.56,199.5,9.93209957]
[1759059461789,364.6,199.59,199.51,7.58]
[1759059462088,7.97,199.6,199.51,7.58]
[1759059462292,8.62,199.59,199.51,7.58]
[1759059462586,7.97,199.58,199.51,7.58]
[1759059469397,34.05,199.58,199.51,7.58]
[1759059469591,7.97,199.58,199.51,7.58]
[1759059469894,58.81,199.58,199.51,7.58]
[1759059470086,7.97,199.58,199.51,7.58]
[1759059477399,34.11,199.58,199.51,7.58]
[1759059477703,7.97,199.58,199.51,7.58]
[1759059491716,7.97,199.58,199.5,2.35209957]
[1759059492416,88.19,199.58,199.5,2.35209957]
[1759059492613,7.97,199.58,199.5,2.35209957]
[1759059494318,7.97,199.58,199.5,9.76209957]
[1759059497218,7.97,199.58,199.51,7.41]
[1759059500416,7.61,199.62,199.51,7.41]
[1759059502217,13.2055633,199.62,199.51,7.41]
[1759059502418,130.43,199.62,199.51,7.41]
[1759059503120,122.82,199.61,199.51,7.41]
[1759059503317,7.61,199.6,199.51,7.41]
[1759059503917,38.99,199.6,199.51,7.41]
[1759059504120,7.61,199.6,199.51,7.41]
[1759059504320,68.79,199.6,199.51,7.41]
[1759059504522,7.61,199.6,199.51,7.41]
[1759059504920,38.97,199.6,199.51,7.41]
[1759059505119,7.61,199.6,199.51,7.41]
[1759059505320,68.75,199.6,199.51,7.41]
[1759059505819,7.61,199.6,199.51,7.41]
[1759059510626,130.41,199.6,199.51,7.41]
[1759059510927,136.0055633,199.6,199.51,7.41]
[1759059511226,13.2055633,199.6,199.51,7.41]
[1759059511627,52.0855633,199.6,199.51,7.41]
[1759059511820,7.79,199.58,199.51,7.41]
[1759059512421,13.3855633,199.58,199.51,7.41]
[1759059512622,13.3855633,199.58,199.5,2.35209957]
[1759059512826,7.79,199.55,199.5,2.35209957]
[1759059513224,72.77,199.55,199.5,2.35209957]
[1759059513525,5.5955633,199.56,199.5,2.35209957]
[1759059513725,25.19,199.55,199.5,1.71983668]
[1759059514028,30.7855633,199.55,199.5,1.71983668]
[1759059514330,7.79,199.55,199.5,1.71983668]
[1759059514528,46.18,199.54,199.5,1.71983668]
[1759059514725,7.79,199.53,199.5,1.71983668]
[1759059514926,7.79,199.53,199.5,1.5132481]
[1759059515231,66.66,199.52,199.5,1.5132481]
[1759059515421,7.79,199.53,199.5,1.5132481]
[1759059515624,7.79,199.51,199.5,1.5132481]
[1759059516024,30.29,199.51,199.5,1.5132481]
[1759059516730,51.43,199.51,199.5,1.5132481]
[1759059517126,71.77,199.51,199.5,1.5132481]
[1759059517430,116.89,199.51,199.5,1.5132481]
[1759059517622,8.29,199.51,199.5,1.5132481]
[1759059517827,131.09,199.51,199.5,1.5132481]
[1759059519723,13.8855633,199.51,199.4,7.76]
[1759059519925,7.79,199.49,199.3,7.76]
[1759059520128,34.32,199.5,199.3,7.76]
[1759059520129,7.79,199.46,199.3,7.76]
[1759059520641,7.79,199.44,199.3,7.76]
[1759059521129,7.79,199.42,199.3,7.76]
[1759059521329,7.79,199.46,199.3,7.76]
[1759059521632,7.79,199.53,199.3,7.76]
[1759059521828,5.5955633,199.53,199.3,7.76]
[1759059522022,7.79,199.52,199.3,7.76]
[1759059522227,122.8,199.51,199.31,130.56]
[1759059522420,370.4755633,199.56,199.31,130.56]
[1759059522421,122.8,199.5,199.32,7.76]
[1759059522627,7.79,199.49,199.32,7.76]
[1759059523131,26.19,199.49,199.32,7.76]
[1759059523631,7.79,199.49,199.32,7.76]
[1759059523830,7.79,199.47,199.32,7.76]
[1759059524021,14.72,199.46,199.32,7.76]
[1759059524223,7.79,199.52,199.32,7.76]
[1759059524420,7.79,199.5,199.32,7.76]
[1759059525136,7.79,199.54,199.32,7.76]
[1759059525326,7.79,199.5,199.32,7.76]
[1759059526429,130.69,199.5,199.32,7.76]
[1759059526831,7.79,199.5,199.32,7.76]
[1759059527040,7.79,199.5,199.29,5.59055998]
[1759059527041,130.69,199.5,199.34,7.76]
[1759059527334,7.79,199.5,199.34,7.76]
[1759059527734,30.53,199.5,199.34,7.76]
[1759059528134,7.79,199.5,199.34,7.76]
[1759059531635,7.79,199.49,199.35,7.76]
[1759059540334,7.7,199.52,199.35,7.76]
[1759059543046,7.7,199.52,199.36,7.52]
[1759059543839,6.4678312,199.63,199.37,5.59055998]
[1759059544144,7.7,199.62,199.4,7.52]
[1759059544338,14.72,199.62,199.4,7.52]
[1759059544533,7.7,199.62,199.4,7.52]
[1759059545542,7.7,199.62,199.42,7.52]
[1759059546844,130.52,199.62,199.42,7.52]
[1759059547042,7.7,199.62,199.42,7.52]
[1759059548134,7.7,199.6,199.42,7.52]
[1759059548741,7.7,199.58,199.42,7.52]
[1759059549142,7.7,199.56,199.42,7.52]
[1759059550041,15.6,199.56,199.42,7.52]
[1759059551038,7.7,199.56,199.42,7.52]
[1759059552447,22.96,199.56,199.42,7.52]
[1759059552642,7.7,199.56,199.42,7.52]
[1759059552844,8.5,199.55,199.36,22.18]
[1759059553147,7.83,199.54,199.37,7.76]
[1759059553440,7.83,199.52,199.37,7.76]
[1759059553950,15.83,199.52,199.37,7.76]
[1759059554644,7.83,199.52,199.37,7.76]
[1759059554844,7.83,199.5,199.37,7.76]
[1759059560148,5.5955633,199.51,199.31,7.76]
[1759059560347,5.5955633,199.48,199.31,7.76]
[1759059560652,27.37,199.47,199.31,7.76]
[1759059560950,41.0,199.46,199.31,7.76]
[1759059561152,7.83,199.45,199.31,7.76]
[1759059571257,7.83,199.45,199.32,7.81]
[1759059571459,8.08,199.52,199.33,7.81]
[1759059573560,487.74,199.53,199.34,43.82]
[1759059573760,8.08,199.52,199.35,7.81]
[1759059574062,31.72,199.52,199.35,7.81]
[1759059574359,8.08,199.52,199.35,7.81]
[1759059574560,26.86,199.52,199.35,7.81]
[1759059575060,8.08,199.52,199.35,7.81]
[1759059575249,26.86,199.52,199.35,7.81]
[1759059575453,8.08,199.52,199.35,7.81]
[1759059575655,26.86,199.52,199.35,7.81]
[1759059575854,8.08,199.5,199.35,7.81]
[1759059576961,8.08,199.5,199.36,7.81]
[1759059592567,0.53300443,199.53,199.36,75.59]
[1759059592768,8.08,199.52,199.37,7.81]
[1759059594066,32.4,199.52,199.37,7.81]
[1759059594267,8.08,199.52,199.37,7.81]
[1759059594574,26.94,199.51,199.37,7.81]
[1759059594763,7.55,199.5,199.37,7.81]
[1759059599071,78.75,199.5,199.37,7.81]
[1759059599474,7.55,199.5,199.37,7.81]
[1759059599672,100.49,199.5,199.37,7.81]
[1759059599868,7.55,199.5,199.37,7.81]
[1759059600074,32.85,199.5,199.37,7.81]
[1759059600264,7.55,199.5,199.37,7.81]
[1759059603475,7.55,199.5,199.33,5.59055998]
[1759059603671,7.55,199.5,199.35,8.09]
[1759059604374,7.55,199.5,199.36,30.66]
[1759059604567,7.55,199.5,199.37,8.09]
[1759059604764,7.55,199.5,199.35,5.59055998]
[1759059605076,7.55,199.5,199.38,13.68055998]
[1759059605376,7.55,199.53,199.39,8.09]
[1759059605572,7.55,199.53,199.41,8.09]
[1759059605777,7.55,199.53,199.43,8.09]
[1759059606477,7.55,199.53,199.44,27.8]
[1759059606772,7.55,199.53,199.45,8.09]
[1759059611386,7.55,199.53,199.4,7.99]
[1759059616385,7.84,199.51,199.4,7.99]
[1759059619786,7.84,199.49,199.32,7.99]
[1759059619982,5.5955633,199.48,199.32,7.99]
[1759059620189,7.84,199.47,199.32,7.99]
[1759059620483,19.50351166,199.47,199.32,7.99]
[1759059621091,8.38351166,199.47,199.32,7.99]
[1759059621287,19.54351166,199.47,199.32,7.99]
[1759059621688,30.14351166,199.47,199.32,7.99]
[1759059623085,8.38351166,199.47,199.32,7.99]
[1759059623289,7.84,199.45,199.32,7.99]
[1759059626386,7.84,199.45,199.29,0.82966626]
[1759059626587,7.84,199.45,199.3,8.08]
[1759059626998,8.17,199.43,199.3,8.08]
[1759059627400,79.43,199.43,199.3,8.08]
[1759059628401,8.17,199.43,199.3,8.08]
[1759059629797,40.07,199.43,199.3,8.08]
[1759059630001,8.17,199.43,199.3,8.08]
[1759059630398,31.82,199.42,199.3,8.08]
[1759059630602,8.17,199.41,199.3,8.08]
[1759059634501,8.17,199.41,199.3,35.82]
[1759059634799,8.17,199.41,199.31,8.08]
[1759059635710,8.17,199.46,199.31,8.08]
[1759059635911,8.17,199.46,199.32,8.08]
[1759059636811,8.17,199.55,199.34,8.08]
[1759059638707,23.53136146,199.55,199.34,8.08]
[1759059640008,146.41136146,199.55,199.35,122.88]
[1759059640309,8.17,199.54,199.36,8.08]
[1759059643210,130.99,199.54,199.36,8.08]
[1759059644313,8.17,199.53,199.38,8.08]
[1759059644605,8.17,199.53,199.4,8.08]
[1759059645813,8.17,199.53,199.41,8.08]
[1759059649109,8.17,199.51,199.41,8.08]
[1759059649301,3.40605942,199.5,199.41,8.08]
[1759059651817,8.17,199.49,199.41,8.08]
[1759059652217,8.17,199.54,199.41,8.08]
[1759059652414,8.17,199.52,199.41,14.46]
[1759059652716,8.17,199.52,199.42,8.08]
[1759059654318,8.17,199.52,199.42,119.14]
[1759059654522,8.17,199.52,199.43,7.41]
[1759059655217,8.17,199.52,199.45,7.41]
[1759059661422,8.17,199.52,199.39,7.41]
[1759059661626,8.17,199.52,199.41,7.41]
[1759059666432,8.06,199.55,199.42,13.54]
[1759059666628,3.40317574,199.54,199.42,13.54]
[1759059666833,3.40317574,199.53,199.42,13.54]
[1759059667131,3.40317574,199.52,199.42,13.54]
[1759059667434,31.78,199.56,199.42,13.54]
[1759059667634,8.06,199.54,199.42,13.54]
[1759059667834,8.06,199.52,199.43,7.41]
[1759059669236,8.06,199.52,199.45,7.41]
[1759059691152,8.06,199.52,199.46,13.54]
[1759059693148,8.06,199.52,199.47,7.51]
[1759059693355,8.04,199.57,199.47,7.51]
[1759059698757,8.04,199.57,199.48,122.66]
[1759059698956,8.04,199.57,199.49,7.51]
[1759059701962,8.04,199.63,199.5,7.51]
[1759059712165,8.04,199.63,199.51,15.99]
[1759059712368,8.04,199.63,199.52,7.51]
[1759059717670,8.04,199.63,199.53,13.53]
[1759059717970,8.04,199.63,199.54,7.69]
[1759059722069,5.5955633,199.65,199.53,13.53]
[1759059722271,7.52,199.63,199.53,13.53]
[1759059722774,7.52,199.61,199.53,13.53]
[1759059723272,7.52,199.6,199.53,13.53]
[1759059723473,51.84,199.61,199.53,13.53]
[1759059723968,7.52,199.6,199.53,13.53]
[1759059724169,51.84,199.61,199.53,13.53]
[1759059724370,5.5955633,199.62,199.53,13.53]
[1759059724572,7.52,199.6,199.53,13.53]
[1759059724767,63.98,199.61,199.53,13.53]
[1759059724972,7.52,199.6,199.53,13.53]
[1759059725176,63.98,199.61,199.53,13.53]
[1759059725374,7.52,199.6,199.53,13.53]
[1759059725575,63.98,199.61,199.53,13.53]
[1759059726075,7.52,199.6,199.53,13.53]
[1759059726279,63.98,199.61,199.53,13.53]
[1759059726280,69.5755633,199.61,199.53,13.53]
[1759059726475,7.52,199.59,199.53,13.53]
[1759059726675,7.52,199.58,199.53,13.53]
[1759059726973,7.52,199.59,199.53,13.53]
[1759059727177,22.0,199.6,199.54,14.31]
[1759059727973,7.52,199.59,199.54,14.31]
[1759059728174,22.0,199.6,199.54,14.31]
[1759059728373,7.52,199.59,199.54,14.31]
[1759059728569,22.0,199.6,199.54,14.31]
[1759059729078,7.52,199.59,199.54,14.31]
[1759059729976,27.5955633,199.6,199.54,14.31]
[1759059730178,7.52,199.59,199.54,14.31]
[1759059730374,27.5955633,199.6,199.54,14.31]
[1759059730972,5.5955633,199.6,199.54,14.31]
[1759059731173,7.52,199.58,199.54,14.31]
[1759059731973,15.32,199.59,199.54,14.31]
[1759059732181,66.74,199.59,199.54,14.31]
[1759059733079,66.74,199.59,199.55,16.72]
[1759059733669,7.52,199.58,199.55,16.72]
[1759059734069,5.5955633,199.6,199.55,16.72]
[1759059734273,122.58,199.59,199.55,16.72]
[1759059735076,7.52,199.58,199.55,16.72]
[1759059735473,122.58,199.59,199.55,16.72]
[1759059735670,7.52,199.58,199.55,16.72]
[1759059736379,122.58,199.59,199.55,16.72]
[1759059736580,7.52,199.58,199.55,16.72]
[1759059736881,128.1755633,199.59,199.55,16.72]
[1759059737073,7.52,199.58,199.55,16.72]
[1759059737578,122.58,199.59,199.55,16.72]
[1759059738078,7.52,199.58,199.55,16.72]
[1759059738478,122.58,199.59,199.56,12.04]
[1759059738681,7.52,199.57,199.56,12.04]
[1759059739678,130.1,199.57,199.56,12.04]
[1759059740881,7.52,199.57,199.56,12.04]
[1759059741083,130.1,199.57,199.56,12.04]
[1759059743781,131.03,199.57,199.56,12.04]
[1759059743974,8.45,199.57,199.56,12.04]
[1759059744287,131.03,199.57,199.56,12.04]
[1759059745686,8.45,199.57,199.56,12.04]
[1759059745882,131.03,199.57,199.56,12.04]
[1759059746184,131.03,199.57,199.54,15.32]
[1759059746481,5.52045662,199.55,199.54,15.32]
[1759059747785,5.52045662,199.56,199.54,15.32]
[1759059747982,30.18,199.55,199.54,15.32]
[1759059748188,5.52045662,199.59,199.54,23.09]
[1759059748384,58.68,199.58,199.54,23.09]
[1759059748788,5.52045662,199.6,199.54,23.09]
[1759059749085,94.38,199.59,199.54,23.09]
[1759059749280,99.90045662,199.59,199.54,23.09]
[1759059749888,99.90045662,199.59,199.55,1.48]
[1759059752487,99.90045662,199.59,199.55,9.25]
[1759059752688,122.58,199.58,199.55,9.25]
[1759059752989,122.58,199.57,199.55,9.25]
[1759059753990,122.58,199.57,199.55,1.48]
[1759059754384,5.52045662,199.6,199.55,1.48]
[1759059754589,128.10045662,199.59,199.55,1.48]
[1759059754893,122.58,199.58,199.55,1.48]
[1759059756993,5.52045662,199.59,199.55,1.48]
[1759059757193,122.58,199.58,199.55,1.48]
[1759059757794,5.52045662,199.59,199.55,1.48]
[1759059757994,122.58,199.58,199.55,1.48]
[1759059759300,128.10045662,199.58,199.55,1.48]
[1759059760598,122.56,199.57,199.55,1.48]
[1759059762193,122.56,199.56,199.55,1.48]
[1759059762389,122.56,199.56,199.55,18.36]
[1759059763603,5.52045662,199.57,199.55,18.36]
[1759059763799,40.86,199.56,199.55,18.36]
[1759059764003,5.52045662,199.57,199.55,18.36]
[1759059764300,40.84,199.56,199.55,18.36]
[1759059764602,5.52045662,199.57,199.55,18.36]
[1759059764904,73.92,199.56,199.55,18.36]
[1759059765203,105.34,199.56,199.55,18.36]
[1759059767107,110.86045662,199.56,199.55,18.36]
[1759059767408,5.52045662,199.56,199.55,18.36]
[1759059767609,45.46045662,199.56,199.55,18.36]
[1759059768105,83.90045662,199.56,199.55,18.36]
[1759059768406,78.38,199.56,199.55,18.36]
[1759059768604,86.77334496,199.56,199.55,18.36]
[1759059768804,78.38,199.56,199.55,18.36]
[1759059770300,0.5,199.56,199.55,18.36]
[1759059770505,39.72,199.56,199.55,18.36]
[1759059770701,8.30865747,199.56,199.55,18.36]
[1759059770906,85.28865747,199.56,199.55,18.36]
[1759059773111,8.30865747,199.56,199.55,18.36]
[1759059773300,8.30865747,199.57,199.55,18.36]
[1759059773707,46.1,199.56,199.55,26.02]
[1759059775914,46.1,199.56,199.55,18.36]
[1759059777310,8.30865747,199.58,199.55,18.36]
[1759059777512,122.54,199.57,199.55,18.36]
[1759059778510,8.30865747,199.58,199.55,18.36]
[1759059778707,122.54,199.57,199.55,18.36]
[1759059779013,122.54,199.57,199.55,24.54]
[1759059781213,8.30865747,199.58,199.55,24.54]
[1759059781514,122.54,199.57,199.55,24.54]
[1759059782314,5.54093484,199.56,199.55,16.88]
[1759059782612,44.86,199.57,199.55,16.88]
[1759059782810,5.54093484,199.58,199.56,7.66]
[1759059783009,128.08093484,199.59,199.56,7.66]
[1759059783213,122.54,199.59,199.57,7.66]
[1759059783406,5.54093484,199.6,199.56,7.66]
[1759059783608,122.54,199.59,199.56,7.66]
[1759059783817,5.54093484,199.6,199.56,7.66]
[1759059784111,122.54,199.59,199.56,7.66]
[1759059784416,122.54,199.59,199.57,7.66]
[1759059784607,122.54,199.59,199.55,16.88]
[1759059784812,122.54,199.59,199.56,7.66]
[1759059785315,122.54,199.59,199.55,16.88]
[1759059785705,122.54,199.59,199.56,7.66]
[1759059786117,122.54,199.59,199.57,7.66]
[1759059786317,122.54,199.59,199.56,7.66]
[1759059786517,122.54,199.59,199.55,16.88]
[1759059786919,122.54,199.59,199.56,7.66]
[1759059787115,5.54093484,199.61,199.56,7.66]
[1759059787419,122.52,199.61,199.58,7.66]
[1759059787619,5.54093484,199.62,199.58,7.66]
[1759059788918,128.06093484,199.63,199.58,7.66]
[1759059789419,122.52,199.63,199.58,7.66]
[1759059790219,122.52,199.63,199.59,7.65]
[1759059790419,122.52,199.63,199.58,7.65]
[1759059791120,122.52,199.63,199.59,7.65]
[1759059791315,122.52,199.63,199.58,7.65]
[1759059793421,122.52,199.63,199.57,16.81]
[1759059793624,122.52,199.63,199.58,7.65]
[1759059794022,122.52,199.63,199.57,16.81]
[1759059794223,5.54093484,199.64,199.58,7.65]
[1759059794419,122.48,199.63,199.58,7.65]
[1759059794624,122.48,199.63,199.59,7.65]
[1759059794824,122.48,199.63,199.6,7.65]
[1759059795221,122.48,199.63,199.59,21.94]
[1759059795524,122.48,199.63,199.59,14.29]
[1759059795919,122.48,199.63,199.6,7.65]
[1759059796625,122.48,199.62,199.6,7.65]
[1759059797927,122.46,199.61,199.59,14.29]
[1759059798627,122.46,199.6,199.59,14.29]
[1759059800224,5.54093484,199.64,199.59,14.29]
[1759059800526,122.46,199.63,199.59,14.29]
[1759059800927,5.54093484,199.64,199.59,14.29]
[1759059801317,122.46,199.63,199.59,14.29]
[1759059802028,5.54093484,199.64,199.59,14.29]
[1759059802222,122.46,199.63,199.59,14.29]
[1759059802418,5.54093484,199.64,199.59,14.29]
[1759059802927,122.46,199.63,199.59,14.29]
[1759059807736,122.46,199.63,199.58,1.48]
[1759059807936,122.46,199.63,199.58,9.24]
[1759059808729,370.32093484,199.65,199.59,7.76]
[1759059808934,364.78,199.65,199.59,7.76]
[1759059809129,122.44,199.64,199.59,7.76]
[1759059809331,122.44,199.63,199.59,7.76]
[1759059810031,14.79502277,199.67,199.62,7.76]
[1759059810232,38.4,199.66,199.6,16.66]
[1759059810629,6.10793639,199.68,199.6,16.66]
[1759059810829,28.0,199.67,199.6,16.66]
[1759059813436,21.44428193,199.68,199.6,16.66]
[1759059813631,69.16,199.67,199.6,16.66]
[1759059813836,108.24,199.66,199.6,16.66]
[1759059814236,122.42,199.65,199.6,16.66]
[1759059814432,122.42,199.65,199.61,7.76]
[1759059814837,122.42,199.65,199.6,16.66]
[1759059815043,122.42,199.65,199.61,7.76]
[1759059815239,122.42,199.65,199.6,16.66]
[1759059815444,122.42,199.65,199.62,7.76]
[1759059816547,122.42,199.65,199.61,7.76]
[1759059817640,122.42,199.65,199.6,16.66]
[1759059817943,122.42,199.65,199.63,7.76]
[1759059818637,15.90334709,199.68,199.63,7.76]
[1759059819146,78.16334709,199.68,199.62,1.47]
[1759059819543,78.16334709,199.68,199.63,7.76]
[1759059819846,132.56334709,199.68,199.62,9.23]
[1759059820045,138.30334709,199.68,199.62,9.23]
[1759059820541,138.30334709,199.68,199.63,25.48]
[1759059820946,138.30334709,199.68,199.63,17.72]
[1759059821144,15.90334709,199.68,199.63,17.72]
[1759059821346,122.4,199.67,199.63,17.72]
[1759059821845,21.44428193,199.68,199.63,17.72]
[1759059822049,122.4,199.67,199.63,17.72]
[1759059823945,21.44428193,199.68,199.63,17.72]
[1759059824250,122.4,199.66,199.63,17.72]
[1759059824452,122.38,199.65,199.63,17.72]
[1759059825753,21.44428193,199.68,199.63,17.72]
[1759059825945,122.38,199.67,199.63,17.72]
[1759059826141,5.54093484,199.67,199.63,17.72]
[1759059826348,127.92093484,199.66,199.63,17.72]
[1759059827252,5.54093484,199.65,199.63,17.72]
[1759059827851,122.38,199.64,199.63,17.72]
[1759059828153,5.54093484,199.65,199.63,17.72]
[1759059828454,44.24,199.64,199.63,25.48]
[1759059829148,86.26,199.64,199.63,25.48]
[1759059829353,86.26,199.64,199.63,17.72]
[1759059831457,86.26,199.64,199.62,22.18]